{"text_format":"3","workbook":"xlsx","n_sheets":2,"sheets":["Budget","dropdown"],"not_rendered":{"images":1,"defined_names":3},"read":"whole","date_system":"1900"}

{"sheet":"Budget","index":0,"n_rows":66,"n_cols":7,"rows_kept":66,"merged":[[4,0,4,7],[5,0,5,7],[6,0,6,7],[8,0,8,6],[9,0,9,6],[41,0,42,0]]}
[]
[]
[]
[]
["Die Berechnung des betreibungsrechtlichen Existenzminimums ist eine Ermessenssache."]
["Wir haben die Tabelle nach bestem Wissen und Gewissen zusammengestellt, "]
["übernehmen aber keine Garantie für die Richtigkeit der Ergebnisse. "]
[]
["Betreibungsrechtliches Existenzminimum nach den Schweizer Richtlinien"]
["[NAME]"]
[]
["Einkommen",null,null,"Mann","Frau",null,"Total"]
[]
["Nettoeinkommen inkl. Provisionen (Durchschnitt)",{"$nulls":5},{"$f":"ROUND(SUM(D14:E14)/5,2)*5","v":0}]
["Hereinkommende Erwachsenenalimente (+)*",{"$nulls":5},{"$f":"ROUND(SUM(D15:E15)/5,2)*5","v":0}]
["Andere Einnahmen",{"$nulls":5},{"$f":"ROUND(SUM(D16:E16)/5,2)*5","v":0}]
[" -  Abgehende Alimentenzahlungen (-)**",{"$nulls":5},{"$f":"ROUND(SUM(D17:E17)/5,2)*5","v":0}]
[]
["Total Einkommen",null,null,{"$f":"SUM(D14:D18)","v":0},{"$f":"SUM(E14:E18)","v":0},null,{"$f":"SUM(G14:G18)","v":0}]
[]
["Einkommen in %",null,null,{"$f":"D19/$G$19","v":{"$error":"#DIV/0!"}},{"$f":"E19/$G$19","v":{"$error":"#DIV/0!"}},null,{"$f":"G19/$G$19","v":{"$error":"#DIV/0!"}}]
[]
["Ausgaben",null,null,"Mann ","Frau",null,"Total"]
[]
["Monatlicher Grundbetrag Erwachsene"]
["- Alleinstehend",{"$nulls":5},{"$f":"IF(B26>0,1200)+0","v":0}]
["- Alleinerziehend",{"$nulls":5},{"$f":"IF(B27>0,1100)+0","v":0}]
["- Ehepaar / eingetragene",null,null,"Zutreffendes"]
["  Partnerschaft / dauernde",null,null,"ankreuzen"]
["  Hausgemeinschaft",{"$nulls":5},{"$f":"IF(B30>0,1700)+0","v":0}]
[]
["Zuschlag Kinder"]
["- Anzahl Kinder bis 10 Jahre",{"$nulls":5},{"$f":"IF(B33>0,B33*400,\"\")","v":""}]
["- Anzahl Kinder über 10 Jahre",{"$nulls":5},{"$f":"IF(B34>0,B34*600,\"\")","v":""}]
[]
[]
["Mietzins"]
["Heiz- und Nebenkosten"]
["Krankenkassenprämien"]
["Beiträge an Berufsverbände",{"$nulls":5},{"$f":"E40+D40","v":0}]
["Auswärtige Verpflegung",{"$nulls":5},{"$f":"E41+D41","v":0}]
["Erhöhter Nahrungsbedarf bei \nSchwerarbeit, Schicht- und Nachtarbeit"]
[{"$nulls":6},{"$f":"E43+D43","v":0}]
["Überdurchschnittlicher Kleiderverbrauch",{"$nulls":5},{"$f":"E44+D44","v":0}]
["Fahrten zum Arbeitsplatz",{"$nulls":5},{"$f":"E45+D45","v":0}]
["Kinderbetreuung"]
["Schulung der Kinder"]
["Jahresfranchise Krankenkasse"]
["Gesundheitskosten"]
["Weiteres"]
[]
["Total Ausgaben",{"$nulls":5},{"$f":"SUM(G25:G50)","v":0}]
[]
[{"$nulls":3},"Mann","Frau"]
["Einkommen",null,null,{"$f":"D19","v":0},{"$f":"E19","v":0}]
["Anteil am familiären Existenzminimum",null,null,{"$f":"$G$52*D21","v":{"$error":"#DIV/0!"}},{"$f":"$G$52*E21","v":{"$error":"#DIV/0!"}}]
["Pfändungsquote pro Monat",null,null,{"$f":"D55-D56","v":{"$error":"#DIV/0!"}},{"$f":"E55-E56","v":{"$error":"#DIV/0!"}}]
["gegebenenfalls zuzüglich 13. Monatslohn, Gratifikationen usw."]
[]
["* Hereinkommende Kinderalimente werden nicht in diese Tabelle integriert."]
["Sie sind für das Kind bestimmt. Der «Zuschlag Kinder», Krankenkasse, "]
["Schulkosten usw. werden grundsätzlich aus dem Aliment bezahlt. "]
["Ein allfälliger Überschuss ist für das Kind bestimmt."]
[]
["** Sofern das Einkommen der beiden Partner das Existenzminimum nicht"]
["deckt, werden die Alimentenzahlungen unter den Ausgaben erfasst."]

{"sheet":"dropdown","index":1,"n_rows":5,"n_cols":1,"rows_kept":5,"hidden":true}
["Bitte Haushaltsform wählen"]
["Grundbetrag für Alleinstehende"]
["Grundbetrag für Alleinerziehende"]
["Grundbetrag für Ehepaare; Paare mit Kindern; eingetragene Partnerschaften"]
["Grundbetrag für kinderlose kostendeckende Wohn- und Lebensgemeinschaften"]